bitfinex-derivatives/quotes_SOLF0:USTF0_20250514
["timestamp","ask_amount","ask_price","bid_price","bid_amount"]
[1747186671285,63.76,184.32,184.22,62.38]
[1747186673587,63.76,184.32,184.28,5.4262]
[1747186674284,63.76,184.32,184.22,62.38]
[1747186674687,63.76,184.32,184.27,5.4262]
[1747186674986,63.76,184.32,184.22,62.38]
[1747186676789,62.38,184.33,184.22,62.38]
[1747186676988,125.8,184.33,184.23,3.5869]
[1747186677188,125.8,184.33,184.32,5.425]
[1747186677591,62.38,184.33,184.32,5.425]
[1747186677796,63.44,184.35,184.34,5.4244]
[1747186678090,62.38,184.38,184.34,5.4244]
[1747186678281,63.38,184.37,184.34,5.4244]
[1747186678482,63.36,184.37,184.34,5.4244]
[1747186680499,62.38,184.38,184.35,5.4241]
[1747186680696,62.38,184.38,184.29,8.71104297]
[1747186681095,62.38,184.42,184.29,8.71104297]
[1747186681402,63.2,184.41,184.29,8.71104297]
[1747186681698,63.2,184.41,184.38,5.4232]
[1747186682097,63.2,184.41,184.27,285.38]
[1747186682496,62.38,184.42,184.27,285.38]
[1747186682696,62.38,184.47,184.36,8.71104297]
[1747186682897,63.2,184.46,184.36,71.09104297]
[1747186683296,62.38,184.47,184.36,71.09104297]
[1747186683492,63.18,184.46,184.36,62.38]
[1747186683696,68.6011,184.46,184.36,62.38]
[1747186683893,63.18,184.46,184.35,3.5501]
[1747186684298,63.18,184.46,184.35,8.9742]
[1747186684498,63.18,184.46,184.35,7.2823]
[1747186684701,5.4223,184.42,184.35,5.4241]
[1747186685001,63.42,184.41,184.34,228.4244]
[1747186685201,62.38,184.42,184.34,223.0]
[1747186685403,62.38,184.42,184.39,5.4229]
[1747186685701,63.44,184.46,184.34,224.8582]
[1747186685902,63.44,184.46,184.43,5.4218]
[1747186686100,63.44,184.46,184.38,62.36]
[1747186686303,63.44,184.46,184.42,5.4219]
[1747186687003,63.44,184.46,184.38,62.36]
[1747186687502,63.44,184.46,184.42,5.4218]
[1747186687704,63.44,184.46,184.38,62.36]
[1747186688102,63.44,184.46,184.42,5.4219]
[1747186688697,63.44,184.46,184.4,5.4224]
[1747186688898,62.36,184.47,184.38,62.36]
[1747186689099,125.68,184.47,184.38,62.36]
[1747186690399,125.68,184.47,184.45,5.421]
[1747186690999,9.0692,184.52,184.39,3.5222]
[1747186691199,63.26,184.51,184.4,8.71104297]
[1747186691702,68.6795,184.51,184.4,8.71104297]
[1747186691900,63.26,184.51,184.39,3.5222]
[1747186693298,63.38,184.51,184.4,5.33441162]
[1747186694103,68.7996,184.51,184.4,5.33441162]
[1747186694398,63.38,184.51,184.4,5.33441162]
[1747186695095,63.38,184.51,184.39,3.5222]
[1747186695296,63.38,184.51,184.38,285.36]
[1747186695493,0.949422,184.5,184.34,3.6093]
[1747186695692,5.33441162,184.49,184.3,65.0017]
[1747186696199,0.949422,184.48,184.31,5.33441162]
[1747186696399,63.24,184.47,184.31,5.33441162]
[1747186696598,66.044422,184.46,184.31,5.33441162]
[1747186696805,65.095,184.46,184.3,65.0017]
[1747186697001,65.095,184.46,184.3,70.33611162]
[1747186697706,0.9496701,184.45,184.3,70.33611162]
[1747186698004,6.3709701,184.45,184.39,5.4227]
[1747186698204,65.095,184.46,184.3,293.33611162]
[1747186698405,0.94967196,184.45,184.3,293.33611162]
[1747186698703,5.4222,184.42,184.36,5.4238]
[1747186698907,63.2,184.41,184.3,1.7617]
[1747186699105,63.2,184.41,184.29,63.24]
[1747186699296,5.4227,184.4,184.34,5.4244]
[1747186699502,5.4227,184.4,184.29,63.24]
[1747186700104,63.2,184.41,184.29,63.24]
[1747186700316,0.94994798,184.4,184.29,63.24]
[1747186700599,0.94994798,184.4,184.27,3.4551]
[1747186701406,0.94994798,184.4,184.29,5.4257]
[1747186701806,5.4236,184.37,184.3,5.4254]
[1747186702107,126.42,184.36,184.3,5.4254]
[1747186702606,131.8439,184.36,184.3,5.4254]
[1747186703306,126.42,184.36,184.3,5.4254]
[1747186703503,63.26,184.4,184.27,12.14039658]
[1747186703708,531.76,184.43,184.31,71.94529658]
[1747186703908,5.4222,184.42,184.31,71.94529658]
[1747186704407,531.76,184.43,184.38,5.4232]
[1747186705002,531.76,184.43,184.32,1.7596]
[1747186705703,531.76,184.43,184.31,63.26]
[1747186706009,0.94986938,184.42,184.31,63.26]
[1747186706201,0.94986938,184.42,184.32,5.4248]
[1747186706403,531.76,184.43,184.29,8.68529658]
[1747186706802,126.3,184.42,184.29,8.68529658]
[1747186707306,126.3,184.42,184.38,5.4233]
[1747186708111,126.3,184.42,184.32,63.26]
[1747186708313,126.3,184.42,184.33,1.7733]
[1747186708611,126.3,184.42,184.36,5.4237]
[1747186709008,126.3,184.42,184.29,231.68529658]
[1747186709310,126.3,184.42,184.29,294.94529658]
[1747186710214,131.7223,184.42,184.29,294.94529658]
[1747186710409,126.3,184.42,184.29,294.94529658]
[1747186710705,126.3,184.42,184.29,286.26]
[1747186711412,5.423,184.39,184.29,286.26]
[1747186711610,126.3,184.42,184.29,286.26]
[1747186711811,5.4226,184.41,184.34,5.4242]
[1747186712810,6.37283821,184.4,184.34,5.4242]
[1747186713115,0.94999364,184.39,184.23,603.52529658]
[1747186713315,1.715,184.38,184.23,603.52529658]
[1747186713515,126.16,184.37,184.34,5.4242]
[1747186713718,126.16,184.37,184.23,603.52529658]
[1747186714114,126.16,184.37,184.31,5.4252]
[1747186714316,126.16,184.37,184.24,8.68529658]
[1747186714518,131.5836,184.37,184.24,8.68529658]
[1747186714814,131.5836,184.37,184.31,5.4252]
[1747186715115,126.16,184.37,184.32,5.4249]
[1747186715315,126.16,184.37,184.24,8.68529658]
[1747186717011,131.5836,184.37,184.24,8.68529658]
[1747186717211,126.16,184.37,184.24,8.68529658]
[1747186717514,5.4244,184.35,184.24,71.94529658]
[1747186717717,1.8372,184.36,184.24,71.94529658]
[1747186718015,5.4245,184.34,184.28,5.4261]
[1747186718516,1.8372,184.36,184.28,5.4261]
[1747186718717,0.95021093,184.35,184.24,8.68529658]
[1747186720718,0.95021093,184.35,184.21,237.01349658]
[1747186721013,0.95021093,184.35,184.21,12.23339658]
[1747186721212,5.4257,184.3,184.21,3.5481]
[1747186721518,0.95021093,184.35,184.21,3.5481]
[1747186721519,125.74,184.29,184.21,3.5481]
[1747186722514,125.74,184.29,184.28,5.4262]
[1747186722714,125.74,184.29,184.24,5.34817862]
[1747186722915,125.74,184.29,184.28,5.4262]
[1747186724426,125.74,184.29,184.24,5.34817862]
[1747186725117,125.74,184.29,184.23,5.34817862]
[1747186725323,62.88,184.32,184.23,5.34817862]
[1747186725522,62.88,184.32,184.3,5.4255]
[1747186725823,62.88,184.32,184.23,5.34817862]
[1747186727226,62.88,184.32,184.27,5.4264]
[1747186727613,62.88,184.32,184.23,5.34817862]
[1747186728128,62.88,184.33,184.23,5.34817862]
[1747186728323,62.88,184.33,184.32,5.425]
[1747186728723,62.7,184.35,184.27,5.34817862]
[1747186728922,62.7,184.35,184.34,5.4244]
[1747186729126,62.88,184.37,184.27,5.34817862]
[1747186729623,62.88,184.37,184.36,5.4238]
[1747186730826,62.88,184.37,184.35,5.4241]
[1747186732722,62.88,184.37,184.36,5.4238]
[1747186733329,62.46,184.4,184.36,5.4236]
[1747186733626,62.46,184.4,184.3,68.3308]
[1747186733826,5.4232,184.39,184.27,5.34817862]
[1747186734125,5.4232,184.39,184.26,62.86]
[1747186734526,5.4233,184.38,184.26,62.86]
[1747186734725,64.2415,184.4,184.24,68.2122]
[1747186734926,0.95007195,184.37,184.24,68.2122]
[1747186735231,68.2841,184.36,184.3,5.4254]
[1747186735528,62.48,184.35,184.33,5.4247]
[1747186735728,62.48,184.35,184.24,68.2122]
[1747186736025,62.48,184.35,184.31,5.4251]
[1747186736425,62.48,184.35,184.24,68.2122]
[1747186736731,62.48,184.35,184.32,5.4248]
[1747186736928,62.48,184.35,184.24,68.2122]
[1747186737427,62.48,184.35,184.32,5.4249]
[1747186737626,62.48,184.35,184.24,68.2122]
[1747186737826,62.48,184.35,184.33,5.4246]
[1747186738027,62.48,184.35,184.24,68.2122]
[1747186739231,62.48,184.35,184.33,5.4245]
[1747186739727,62.86,184.36,184.27,5.4263]
[1747186739930,62.86,184.36,184.24,68.2122]
[1747186740632,62.86,184.36,184.24,5.3522]
[1747186740832,5.425,184.33,184.29,5.4259]
[1747186741034,62.46,184.32,184.24,5.3522]
[1747186741230,5.4256,184.31,184.24,3.5587]
[1747186741429,62.86,184.31,184.23,285.86]
[1747186741828,62.86,184.31,184.27,5.4263]
[1747186742633,62.46,184.36,184.25,62.86]
[1747186742835,62.46,184.36,184.26,3.5082]
[1747186743033,62.46,184.36,184.32,5.4249]
[1747186743228,62.46,184.36,184.26,8.85637862]
[1747186743938,62.86,184.37,184.26,231.85637862]
[1747186744127,62.86,184.37,184.36,5.4238]
[1747186744732,62.46,184.4,184.3,68.20817862]
[1747186745734,62.86,184.41,184.3,68.20817862]
[1747186745940,62.86,184.45,184.34,5.34817862]
[1747186746234,62.86,184.45,184.35,68.293]
[1747186746434,125.4,184.45,184.35,68.293]
[1747186746630,62.86,184.45,184.35,68.293]
[1747186746834,62.86,184.45,184.44,5.4215]
[1747186747036,468.92,184.52,184.35,68.293]
[1747186747335,125.54,184.51,184.38,5.34817862]
[1747186747735,125.54,184.51,184.48,5.4202]
[1747186747936,125.54,184.51,184.39,62.66]
[1747186748837,130.9597,184.51,184.39,62.66]
[1747186749136,125.54,184.51,184.39,62.66]
[1747186749933,468.82,184.61,184.42,5.34817862]
[1747186750142,5.4174,184.58,184.46,5.34817862]
[1747186750535,128.2106045,184.6,184.46,5.34817862]
[1747186750731,0.9492045,184.57,184.46,5.34817862]
[1747186750937,6.3663045,184.59,184.46,5.34817862]
[1747186751237,63.5292045,184.58,184.46,5.34817862]
[1747186751539,62.56,184.57,184.46,5.34817862]
[1747186751840,62.58,184.59,184.5,5.34817862]
[1747186752039,62.86,184.6,184.5,5.34817862]
[1747186752338,125.42,184.6,184.5,5.34817862]
[1747186752939,125.42,184.6,184.56,5.4179]
[1747186753141,125.42,184.6,184.5,5.34817862]
[1747186753635,125.42,184.6,184.57,5.4175]
[1747186754241,62.86,184.6,184.58,5.4171]
[1747186754442,62.54,184.65,184.54,5.34817862]
[1747186754739,1.7342,184.67,184.55,66.1748]
[1747186754936,7.1489,184.67,184.61,5.4165]
[1747186755241,0.94861115,184.66,184.61,5.4165]
[1747186755542,0.94861115,184.66,184.6,5.4167]
[1747186755739,6.36371115,184.66,184.55,66.1748]
[1747186755933,5.4151,184.66,184.55,66.1748]
[1747186756240,5.4154,184.65,184.58,5.4173]
[1747186756440,62.54,184.64,184.58,5.4173]
[1747186756640,62.62,184.63,184.51,230.14487862]
[1747186756841,63.56858827,184.63,184.51,230.14487862]
[1747186757141,62.62,184.63,184.51,223.0]
[1747186757341,2.70922873,184.62,184.51,223.0]
[1747186757843,5.4171,184.6,184.53,5.4186]
[1747186758043,62.52,184.59,184.53,5.4186]
[1747186758236,62.74,184.58,184.53,5.4186]
[1747186759037,62.74,184.58,184.49,5.4198]
[1747186759241,62.74,184.58,184.45,62.52]
[1747186759444,0.94902157,184.57,184.45,62.52]
[1747186760042,0.94902157,184.57,184.42,1.7627]
[1747186760242,1.7773,184.56,184.42,64.2827]
[1747186760442,0.94917731,184.55,184.43,5.34817862]
[1747186760640,62.52,184.54,184.43,5.34817862]
[1747186760834,62.66,184.57,184.47,5.34817862]
[1747186761039,62.66,184.57,184.48,66.1163]
[1747186761743,62.8,184.6,184.51,5.34817862]
[1747186762841,62.8,184.6,184.56,5.4177]
[1747186763543,62.52,184.62,184.56,5.4177]
[1747186763748,62.76,184.61,184.56,5.4177]
[1747186764342,62.76,184.61,184.48,3.5963]
[1747186764839,0.94887469,184.6,184.48,3.5963]
[1747186765145,5.4172,184.59,184.48,3.5963]
[1747186765551,5.4174,184.58,184.48,3.5963]
[1747186765743,62.52,184.57,184.48,3.5963]
[1747186765943,125.26,184.57,184.46,62.52]
[1747186766741,125.26,184.57,184.53,5.4188]
[1747186767146,62.52,184.57,184.47,62.68]
[1747186767349,62.52,184.57,184.55,5.4181]
[1747186768045,62.52,184.57,184.56,5.418]
[1747186768346,62.7,184.59,184.51,62.52]
[1747186769248,5.4164,184.62,184.51,62.52]
[1747186769450,62.58,184.61,184.51,62.52]
[1747186769843,67.9967,184.61,184.56,5.4179]
[1747186770049,62.58,184.61,184.51,62.52]
[1747186770947,62.58,184.61,184.56,5.4179]
[1747186771551,62.58,184.61,184.57,5.4177]
[1747186772052,62.58,184.61,184.58,5.4174]
[1747186772549,62.58,184.61,184.51,62.52]
[1747186773555,62.58,184.61,184.47,289.0518]
[1747186773757,1.801,184.6,184.47,226.5518]
[1747186773949,0.94893756,184.59,184.47,226.5518]
[1747186774148,6.36623756,184.59,184.52,5.4189]
[1747186774349,5.4173,184.59,184.47,226.5518]
[1747186774647,3.5282,184.6,184.54,5.4183]
[1747186775456,8.945,184.6,184.54,5.4183]
[1747186776153,3.5282,184.6,184.55,5.4182]
[1747186776357,3.5282,184.6,184.47,226.5518]
[1747186777455,3.5282,184.6,184.55,5.418]
[1747186777854,3.5282,184.6,184.47,226.5518]
[1747186778155,8.9452,184.6,184.47,3.5518]
[1747186778353,3.5282,184.6,184.47,3.5518]
[1747186779049,0.94894992,184.59,184.44,1.7858]
[1747186779259,0.94894992,184.59,184.49,5.4199]
[1747186780048,0.94894992,184.59,184.44,1.7858]
[1747186780859,5.4183,184.55,184.49,5.4198]
[1747186781056,124.9,184.54,184.44,1.7858]
[1747186781257,62.52,184.53,184.44,1.7858]
[1747186781659,62.52,184.53,184.49,5.4198]
[1747186781859,62.52,184.53,184.4,62.4]
[1747186782058,5.4195,184.51,184.45,5.421]
[1747186782255,5.3923,184.52,184.39,5.357]
[1747186782463,5.3923,184.52,184.35,62.4]
[1747186782660,0.94935406,184.51,184.35,62.4]
[1747186782859,5.4207,184.47,184.35,62.4]
[1747186783155,125.18,184.46,184.35,62.4]
[1747186783362,62.8,184.45,184.38,5.4233]
[1747186783557,62.8,184.45,184.33,5.3496]
[1747186783757,5.4217,184.44,184.36,5.4236]
[1747186783958,0.94973155,184.44,184.36,5.4236]
[1747186784158,0.94973155,184.44,184.33,5.3496]
[1747186784363,62.8,184.45,184.33,5.3496]
[1747186784861,0.94973004,184.44,184.33,5.3496]
[1747186785364,5.4217,184.44,184.37,5.4235]
[1747186785565,5.4217,184.44,184.33,5.3496]
[1747186786264,5.4217,184.44,184.35,5.4241]
[1747186786460,62.8,184.45,184.32,62.4]
[1747186786660,5.3282,184.43,184.32,62.4]
[1747186786958,5.3282,184.43,184.29,62.6]
[1747186787364,0.94981436,184.42,184.29,62.6]
[1747186787661,67.8425,184.41,184.32,5.4247]
[1747186787861,62.56,184.4,184.29,62.6]
[1747186788260,62.56,184.4,184.34,5.4244]
[1747186789164,62.56,184.4,184.28,536.16817862]
[1747186790566,62.42,184.41,184.28,536.16817862]
[1747186790859,62.42,184.41,184.32,5.34817862]
[1747186791066,62.42,184.45,184.33,62.42]
[1747186791267,62.44,184.44,184.33,62.42]
[1747186791865,62.44,184.44,184.39,5.4228]
[1747186792067,62.44,184.44,184.33,62.42]
[1747186792766,62.42,184.49,184.36,5.34817862]
[1747186792965,62.48,184.49,184.4,5.34817862]
[1747186793166,62.48,184.49,184.45,5.4211]
[1747186793865,62.48,184.49,184.46,5.4209]
[1747186794068,62.48,184.49,184.4,67.76817862]
[1747186795168,62.48,184.49,184.46,5.4207]
[1747186795466,62.48,184.49,184.4,67.76817862]
[1747186795767,67.9001,184.49,184.4,62.42]
[1747186796566,67.9001,184.49,184.43,5.4217]
[1747186797268,62.48,184.49,184.43,5.4217]
[1747186797467,62.48,184.49,184.44,5.4214]
[1747186797667,62.48,184.49,184.4,62.42]
[1747186798069,62.44,184.5,184.4,67.76817862]
[1747186798569,62.44,184.5,184.46,5.4208]
[1747186798769,62.44,184.5,184.4,67.76817862]
[1747186799665,62.44,184.5,184.44,5.4212]
[1747186799971,62.44,184.5,184.4,67.76817862]
[1747186800572,62.44,184.5,184.44,5.4212]
[1747186800873,62.44,184.5,184.4,67.76817862]
[1747186801071,62.44,184.5,184.37,3.5413]
[1747186801270,6.37757159,184.49,184.37,3.5413]
[1747186801567,0.94937159,184.49,184.37,65.9613]
[1747186801773,62.42,184.5,184.37,65.9613]
[1747186801973,62.42,184.49,184.37,65.9613]
[1747186802376,124.84,184.5,184.46,5.4207]
[1747186802572,124.84,184.5,184.37,288.9613]
[1747186802762,124.84,184.5,184.43,5.4216]
[1747186803271,124.84,184.5,184.42,5.422]
[1747186803474,124.84,184.5,184.37,3.5413]
[1747186803875,0.94946661,184.49,184.37,3.5413]
[1747186804075,0.94946661,184.49,184.39,5.4229]
[1747186804675,5.4208,184.47,184.4,5.4226]
[1747186804874,0.94946661,184.49,184.37,3.5413]
[1747186805074,124.84,184.5,184.37,3.5413]
[1747186805476,124.84,184.5,184.43,5.4216]
[1747186806173,124.84,184.5,184.37,8.88947862]
[1747186806364,124.84,184.5,184.37,3.5413]
[1747186806966,0.94943547,184.49,184.37,3.5413]
[1747186807370,0.94943547,184.49,184.41,5.4222]
[1747186807574,124.84,184.5,184.41,5.4222]
[1747186807976,124.84,184.5,184.37,3.5413]
[1747186808176,0.94942415,184.49,184.37,3.5413]
[1747186808377,124.84,184.5,184.37,3.5413]
[1747186808573,124.84,184.5,184.43,5.4215]
[1747186808975,130.26,184.5,184.43,5.4215]
[1747186809175,124.84,184.5,184.42,5.4221]
[1747186809587,130.2598,184.5,184.37,3.5413]
[1747186809776,124.84,184.5,184.37,3.5413]
[1747186810273,2.67721327,184.49,184.37,3.5413]
[1747186810579,5.421,184.46,184.39,5.4228]
[1747186810772,124.86,184.45,184.39,5.4228]
[1747186810979,130.2813,184.45,184.38,5.423]
[1747186811678,124.86,184.45,184.37,3.5413]
[1747186811879,124.86,184.45,184.31,1.8291]
[1747186812073,124.86,184.45,184.32,3.4662]
[1747186812274,124.86,184.45,184.36,5.4238]
[1747186813177,124.86,184.45,184.37,5.4234]
[1747186813979,5.4217,184.44,184.37,5.4234]
[1747186814677,124.86,184.45,184.35,62.42]
[1747186814678,62.42,184.45,184.35,62.42]
[1747186815182,62.42,184.45,184.41,5.4224]
[1747186815377,62.42,184.45,184.35,62.42]
[1747186816480,62.42,184.45,184.4,5.4224]
[1747186816681,62.42,184.45,184.35,62.42]
[1747186816983,62.42,184.45,184.41,5.4222]
[1747186817379,62.42,184.45,184.36,5.34817862]
[1747186817579,62.42,184.45,184.42,5.4218]
[1747186817978,62.42,184.45,184.36,5.34817862]
[1747186818181,62.42,184.45,184.32,231.81437862]
[1747186818675,5.4224,184.42,184.36,5.4237]
[1747186818873,62.42,184.41,184.36,5.4237]
[1747186819075,62.42,184.41,184.32,231.81437862]
[1747186820284,62.42,184.41,184.38,5.423]
[1747186820481,62.42,184.41,184.32,231.81437862]
[1747186820987,62.42,184.41,184.32,3.4662]
[1747186821286,62.42,184.4,184.36,5.4236]
[1747186821486,62.42,184.4,184.32,3.4662]
[1747186821887,62.42,184.4,184.36,5.4237]
[1747186822380,62.42,184.41,184.37,5.4234]
[1747186822585,62.42,184.41,184.32,8.81437862]
[1747186822990,62.42,184.41,184.37,5.4234]
[1747186823587,62.42,184.41,184.32,3.4662]
[1747186823978,5.4231,184.39,184.32,3.4662]
[1747186824286,62.42,184.41,184.32,3.4662]
[1747186824587,62.42,184.41,184.34,5.4242]
[1747186824788,62.42,184.41,184.32,3.4662]
[1747186825088,62.42,184.41,184.33,5.4245]
[1747186825384,62.42,184.41,184.32,3.4662]
[1747186826391,5.4229,184.4,184.34,5.4242]
[1747186826597,62.42,184.41,184.34,5.4242]
[1747186826894,62.42,184.41,184.32,3.4662]
[1747186827596,62.42,184.42,184.32,3.4662]
[1747186827799,62.44,184.41,184.32,3.4662]
[1747186828199,62.44,184.41,184.38,5.423]
[1747186828500,62.44,184.41,184.32,3.4662]
[1747186828896,62.44,184.41,184.32,1.7214]
[1747186829095,62.44,184.41,184.31,62.42]
[1747186829299,67.8388,184.41,184.31,62.42]
[1747186829500,5.4232,184.39,184.28,696.76817862]
[1747186829699,67.8388,184.41,184.27,64.2606]
[1747186830097,5.4234,184.38,184.31,5.4251]
[1747186830298,62.44,184.37,184.31,5.4251]
[1747186830497,62.42,184.36,184.31,5.4251]
[1747186831497,62.42,184.36,184.32,5.4248]
[1747186831696,62.42,184.36,184.27,64.2606]
[1747186831893,62.42,184.36,184.31,5.4253]
[1747186832405,62.42,184.36,184.27,64.2606]
[1747186833399,62.42,184.36,184.32,5.4249]
[1747186834206,62.42,184.36,184.33,5.4247]
[1747186834393,5.4235,184.38,184.28,5.34817862]
[1747186834394,62.42,184.38,184.28,5.34817862]
[1747186835099,62.42,184.38,184.29,62.42]
[1747186835295,62.42,184.38,184.37,5.4236]
[1747186835605,62.42,184.38,184.3,5.34817862]
[1747186837003,62.42,184.38,184.36,5.4238]
[1747186837203,62.44,184.39,184.3,5.34817862]
[1747186837501,531.2,184.45,184.34,5.34817862]
[1747186837703,67.8613,184.45,184.41,5.4221]
[1747186837902,62.44,184.45,184.38,5.34817862]
[1747186838101,62.42,184.48,184.44,5.4213]
[1747186838303,62.42,184.48,184.38,5.34817862]
[1747186838705,62.42,184.48,184.35,3.5278]
[1747186838909,6.4259701,184.47,184.35,3.5278]
[1747186839103,5.4216,184.44,184.39,5.4227]
[1747186839306,5.4764,184.47,184.35,3.5278]
[1747186840208,62.42,184.48,184.35,3.5278]
[1747186840508,124.86,184.49,184.35,3.5278]
[1747186840805,62.44,184.49,184.38,5.34817862]
[1747186840999,124.86,184.49,184.45,5.4212]
[1747186841205,62.44,184.49,184.39,62.44]
[1747186841397,124.86,184.49,184.39,62.44]
[1747186845412,124.86,184.49,184.45,5.421]
[1747186846008,62.44,184.49,184.39,62.44]
[1747186846305,130.2764,184.53,184.42,5.34817862]
[1747186846506,67.8764,184.53,184.48,5.4201]
[1747186846707,62.4,184.52,184.48,5.4201]
[1747186846908,62.4,184.52,184.42,5.34817862]
[1747186847107,62.4,184.53,184.42,5.34817862]
[1747186847309,124.8,184.53,184.43,3.5622]
[1747186847604,124.8,184.53,184.49,5.4198]
[1747186847909,124.8,184.53,184.43,3.5622]
[1747186848808,124.8,184.53,184.49,5.4198]
[1747186849007,124.8,184.53,184.43,1.7767]
[1747186849204,124.8,184.53,184.4,1.8011]
[1747186849601,5.4195,184.51,184.46,5.4207]
[1747186850013,5.4195,184.51,184.4,1.8011]
[1747186850208,124.8,184.53,184.4,1.8011]
[1747186850414,124.8,184.53,184.43,5.34817862]
[1747186850714,130.2191,184.53,184.47,5.4205]
[1747186850911,130.2191,184.53,184.43,5.34817862]
[1747186851514,130.2191,184.53,184.47,5.4204]
[1747186851716,124.8,184.53,184.43,5.34817862]
[1747186852411,124.8,184.53,184.49,5.4198]
[1747186852614,62.4,184.53,184.44,62.38]
[1747186852814,62.4,184.53,184.44,66.0179]
[1747186853012,62.38,184.54,184.44,66.0179]
[1747186853512,62.38,184.57,184.54,5.4186]
[1747186853712,62.38,184.56,184.46,5.34817862]
[1747186855219,62.38,184.56,184.53,5.4187]
[1747186855920,62.38,184.56,184.44,66.0179]
[1747186856517,5.4183,184.55,184.45,5.34817862]
[1747186856719,62.36,184.56,184.45,5.34817862]
[1747186857215,67.7781,184.56,184.52,5.4189]
[1747186857420,62.36,184.56,184.45,5.34817862]
[1747186858220,124.72,184.57,184.45,5.34817862]
[1747186859024,130.1377,184.57,184.53,5.4188]
[1747186859324,124.72,184.57,184.45,5.34817862]
[1747186860123,62.34,184.6,184.49,5.34817862]
[1747186860321,62.36,184.61,184.5,62.36]
[1747186860521,62.36,184.61,184.5,64.053]
[1747186861630,62.36,184.61,184.6,5.4168]
[1747186861824,62.36,184.61,184.5,64.053]
[1747186862226,62.36,184.61,184.58,5.4173]
[1747186862526,62.36,184.61,184.5,64.053]
[1747186862927,62.36,184.61,184.58,5.4172]
[1747186863228,62.36,184.61,184.5,64.053]
[1747186864331,67.7765,184.61,184.5,64.053]
[1747186864529,62.36,184.61,184.46,5.34817862]
[1747186864730,62.36,184.61,184.46,62.36]
[1747186865031,0.94890546,184.6,184.51,5.4192]
[1747186865431,5.4179,184.57,184.51,5.4192]
[1747186865631,124.66,184.56,184.46,62.36]
[1747186866328,62.34,184.56,184.46,62.36]
[1747186866833,62.34,184.56,184.54,5.4183]
[1747186867535,62.34,184.56,184.46,62.36]
[1747186867536,62.32,184.57,184.46,62.36]
[1747186867831,62.32,184.6,184.49,5.34817862]
[1747186868131,62.32,184.6,184.58,5.4173]
[1747186868430,62.32,184.6,184.51,62.34]
[1747186869131,62.32,184.64,184.53,5.34817862]
[1747186869335,62.32,184.64,184.54,62.32]
[1747186869534,62.32,184.64,184.6,5.4166]
[1747186870033,130.0755,184.65,184.6,5.4166]
[1747186870332,62.34,184.65,184.54,62.32]
[1747186870633,62.34,184.65,184.61,5.4163]
[1747186870835,62.32,184.69,184.57,5.34817862]
[1747186871032,124.66,184.7,184.58,64.0487]
[1747186871631,3.5571,184.74,184.61,5.34817862]
[1747186871834,1.8502,184.76,184.62,62.34]
[1747186872138,5.4114,184.79,184.69,5.34817862]
[1747186872431,62.3,184.79,184.69,5.34817862]